[Event "*** Titled Tuesday Blitz"]
[Site "Chess.com"]
[Date "2020.04.28"]
[Round "5"]
[White "crescentmoon2411"]
[Black "mishanick"]
[Result "1/2-1/2"]
[WhiteElo "2796"]
[BlackElo "3025"]
[TimeControl "180+1"]
[EndTime "10:58:46 PDT"]
[Termination "Game drawn by agreement"]

1. e4 {[%clk 0:03:00.9]} 1... c5 {[%clk 0:02:59]} 2. Nf3 {[%clk 0:03:00.9]} 2...
d6 {[%clk 0:02:59]} 3. d4 {[%clk 0:02:58]} 3... cxd4 {[%clk 0:02:59.4]} 4. Nxd4
{[%clk 0:02:58.9]} 4... Nf6 {[%clk 0:03:00.1]} 5. Nc3 {[%clk 0:02:58.9]} 5... a6
{[%clk 0:03:00.7]} 6. Bg5 {[%clk 0:02:57]} 6... e6 {[%clk 0:03:00.7]} 7. f4
{[%clk 0:02:54.6]} 7... Qb6 {[%clk 0:03:00]} 8. a3 {[%clk 0:02:49.7]} 8... Nbd7
{[%clk 0:02:55.5]} 9. Nb3 {[%clk 0:02:37.2]} 9... Be7 {[%clk 0:02:53.5]} 10. Qf3
{[%clk 0:02:31.3]} 10... h6 {[%clk 0:02:47.9]} 11. Bxf6 {[%clk 0:02:29.4]} 11...
Bxf6 {[%clk 0:02:30]} 12. O-O-O {[%clk 0:02:28.2]} 12... Qc7 {[%clk 0:02:30.5]}
13. Rd3 {[%clk 0:02:14.4]} 13... Rb8 {[%clk 0:02:17.1]} 14. Be2 {[%clk
0:02:12.9]} 14... b5 {[%clk 0:02:00.5]} 15. Rhd1 {[%clk 0:02:12.2]} 15... Be7
{[%clk 0:02:01.1]} 16. Kb1 {[%clk 0:01:15.4]} 16... b4 {[%clk 0:01:57.6]} 17.
axb4 {[%clk 0:01:14.7]} 17... Rxb4 {[%clk 0:01:58.5]} 18. Rd4 {[%clk 0:01:14.2]}
18... Rxd4 {[%clk 0:01:54]} 19. Rxd4 {[%clk 0:01:15.1]} 19... O-O {[%clk
0:01:53.5]} 20. Rc4 {[%clk 0:01:13.8]} 20... Qb6 {[%clk 0:01:52]} 21. Ka2 {[%clk
0:01:05.1]} 21... Bb7 {[%clk 0:01:47.7]} 22. Qd3 {[%clk 0:01:00.1]} 22... a5
{[%clk 0:01:16.8]} 23. Qd4 {[%clk 0:00:59]} 23... Nc5 {[%clk 0:01:12.5]} 24.
Nxc5 {[%clk 0:00:52.1]} 24... dxc5 {[%clk 0:01:12.5]} 25. Qd7 {[%clk 0:00:52]}
25... Bf6 {[%clk 0:00:58.4]} 26. e5 {[%clk 0:00:52]} 26... Rd8 {[%clk 0:00:54]}
27. Qb5 {[%clk 0:00:51.3]} 27... Qxb5 {[%clk 0:00:51.8]} 28. Nxb5 {[%clk
0:00:52.2]} 28... Be7 {[%clk 0:00:52.2]} 29. Ra4 {[%clk 0:00:30.7]} 29... Rd2
{[%clk 0:00:41.1]} 30. Bf3 {[%clk 0:00:30]} 30... Bxf3 {[%clk 0:00:37.3]} 31.
gxf3 {[%clk 0:00:30.9]} 31... Rxc2 {[%clk 0:00:37]} 32. Rxa5 {[%clk 0:00:30.4]}
32... Rxh2 {[%clk 0:00:24.1]} 33. Ra8+ {[%clk 0:00:30.4]} 33... Kh7 {[%clk
0:00:24.1]} 34. Ra7 {[%clk 0:00:30.2]} 34... Bh4 {[%clk 0:00:23.9]} 35. Nd6
{[%clk 0:00:25.8]} 35... Kg6 {[%clk 0:00:19.4]} 36. Rxf7 {[%clk 0:00:23]} 36...
Rf2 {[%clk 0:00:18.6]} 37. f5+ {[%clk 0:00:19.4]} 37... exf5 {[%clk 0:00:18.5]}
38. e6 {[%clk 0:00:19.4]} 38... Re2 {[%clk 0:00:17.8]} 39. Rxf5 {[%clk
0:00:12.5]} 39... Rxe6 {[%clk 0:00:15.1]} 40. Rd5 {[%clk 0:00:12.7]} 40... Be7
{[%clk 0:00:14.8]} 41. Ne4 {[%clk 0:00:12.4]} 41... h5 {[%clk 0:00:15.4]} 42.
Kb3 {[%clk 0:00:10.9]} 42... h4 {[%clk 0:00:15.4]} 43. Kc4 {[%clk 0:00:10.8]}
43... h3 {[%clk 0:00:15.6]} 44. Rd1 {[%clk 0:00:10.7]} 44... Re5 {[%clk
0:00:15.5]} 45. Rh1 {[%clk 0:00:10.1]} 45... Rh5 {[%clk 0:00:15]} 46. Kd3 {[%clk
0:00:10.6]} 46... Rh4 {[%clk 0:00:14.3]} 47. b3 {[%clk 0:00:10.1]} 47... Kf5
{[%clk 0:00:13.9]} 48. Ke3 {[%clk 0:00:10.5]} 48... Bg5+ {[%clk 0:00:11.9]} 49.
Kf2 {[%clk 0:00:10.3]} 49... Bf4 {[%clk 0:00:12.4]} 50. Rd1 {[%clk 0:00:10.1]}
50... h2 {[%clk 0:00:11.9]} 51. Kg2 {[%clk 0:00:10.4]} 51... Rh8 {[%clk
0:00:09]} 52. Rd5+ {[%clk 0:00:08.7]} 52... Ke6 {[%clk 0:00:08]} 53. Rd1 {[%clk
0:00:08.3]} 53... Be3 {[%clk 0:00:08.1]} 54. Kh1 {[%clk 0:00:07.5]} 54... Bg1
{[%clk 0:00:07.5]} 55. Rd6+ {[%clk 0:00:06.6]} 55... Ke5 {[%clk 0:00:07.7]} 56.
Rg6 {[%clk 0:00:06.6]} 56... Rh7 {[%clk 0:00:07.4]} 57. Rg4 {[%clk 0:00:05.9]}
57... Be3 {[%clk 0:00:06]} 58. Rg2 {[%clk 0:00:04.7]} 58... Bf4 {[%clk
0:00:05.6]} 59. Nxc5 {[%clk 0:00:03.9]} 59... Kf5 {[%clk 0:00:05.6]} 60. Nd3
{[%clk 0:00:04.2]} 60... Bd6 {[%clk 0:00:06.2]} 61. f4 {[%clk 0:00:04.2]} 61...
Rh3 {[%clk 0:00:05.2]} 62. Nf2 {[%clk 0:00:04.3]} 62... Rf3 {[%clk 0:00:05.1]}
63. Rxh2 {[%clk 0:00:04.4]} 63... Bxf4 {[%clk 0:00:05.6]} 64. Rg2 {[%clk
0:00:04.4]} 64... g5 {[%clk 0:00:05.9]} 65. Kg1 {[%clk 0:00:01.2]} 65... Rxb3
{[%clk 0:00:06.3]} 66. Kf1 {[%clk 0:00:01.6]} 66... Rb1+ {[%clk 0:00:06.1]} 67.
Ke2 {[%clk 0:00:02.2]} 67... Rb2+ {[%clk 0:00:06.7]} 68. Kf1 {[%clk 0:00:02.6]}
68... Rb3 {[%clk 0:00:06]} 69. Ke2 {[%clk 0:00:02.9]} 69... Re3+ {[%clk
0:00:05.5]} 70. Kf1 {[%clk 0:00:03.3]} 70... Re8 {[%clk 0:00:05.7]} 71. Ng4
{[%clk 0:00:03.6]} 71... Ra8 {[%clk 0:00:06.3]} 72. Nh6+ {[%clk 0:00:03.8]}
72... Ke4 {[%clk 0:00:06.8]} 73. Re2+ {[%clk 0:00:04.2]} 73... Kf3 {[%clk
0:00:07.2]} 74. Rf2+ {[%clk 0:00:04.8]} 74... Ke4 {[%clk 0:00:07.4]} 75. Re2+
{[%clk 0:00:05.2]} 75... Kd5 {[%clk 0:00:07.1]} 76. Kg2 {[%clk 0:00:05.2]} 76...
Ra3 {[%clk 0:00:07.1]} 77. Nf5 {[%clk 0:00:05.3]} 77... Rd3 {[%clk 0:00:07]} 78.
Ne7+ {[%clk 0:00:05.5]} 78... Kc5 {[%clk 0:00:04.6]} 79. Nf5 {[%clk 0:00:06.4]}
79... Rb3 {[%clk 0:00:03.4]} 80. Rc2+ {[%clk 0:00:06.3]} 80... Kd5 {[%clk
0:00:03.5]} 81. Re2 {[%clk 0:00:07.2]} 81... Ra3 {[%clk 0:00:03.4]} 82. Ne7+
{[%clk 0:00:07.6]} 82... Kd4 {[%clk 0:00:03.4]} 83. Nf5+ {[%clk 0:00:08.1]}
83... Kd3 {[%clk 0:00:04.1]} 84. Re6 {[%clk 0:00:07.8]} 84... Ra5 {[%clk
0:00:04.5]} 85. Nh6 {[%clk 0:00:07.1]} 85... Ra1 {[%clk 0:00:05]} 86. Kf3 {[%clk
0:00:07.5]} 86... Rg1 {[%clk 0:00:05.1]} 87. Nf5 {[%clk 0:00:06.9]} 87... Bc1
{[%clk 0:00:05.4]} 88. Rd6+ {[%clk 0:00:07.1]} 88... Kc4 {[%clk 0:00:05.7]} 89.
Rc6+ {[%clk 0:00:07.5]} 89... Kd5 {[%clk 0:00:05.8]} 90. Rc2 {[%clk 0:00:07.3]}
90... Ke5 {[%clk 0:00:05.5]} 91. Ne3 {[%clk 0:00:06.7]} 91... Re1 {[%clk
0:00:02.5]} 92. Ng4+ {[%clk 0:00:05.9]} 92... Kf5 {[%clk 0:00:02.4]} 93. Rc5+
{[%clk 0:00:05.9]} 93... Kg6 {[%clk 0:00:02.8]} 94. Rc6+ {[%clk 0:00:06.4]}
94... Kf7 {[%clk 0:00:03.3]} 95. Rc7+ {[%clk 0:00:06.4]} 95... Ke6 {[%clk
0:00:02.9]} 96. Rc2 {[%clk 0:00:06.5]} 96... Bf4 {[%clk 0:00:02.6]} 97. Re2+
{[%clk 0:00:06.5]} 97... Rxe2 {[%clk 0:00:02.6]} 98. Kxe2 {[%clk 0:00:07.4]}
98... Kf5 {[%clk 0:00:03.1]} 99. Kf3 {[%clk 0:00:08.3]} 99... Kg6 {[%clk
0:00:04]} 100. Nf2 {[%clk 0:00:08.5]} 100... Kh5 {[%clk 0:00:04.9]} 101. Ng4
{[%clk 0:00:09.3]} 101... Kh4 {[%clk 0:00:05.8]} 102. Nf6 {[%clk 0:00:09.5]}
102... Bc7 {[%clk 0:00:06.3]} 103. Ng4 {[%clk 0:00:09.9]} 103... Bb6 {[%clk
0:00:07]} 104. Nh6 {[%clk 0:00:10.3]} 104... Kh5 {[%clk 0:00:06.9]} 105. Ng4
{[%clk 0:00:10.8]} 105... Bd4 {[%clk 0:00:07.6]} 106. Nh2 {[%clk 0:00:10.6]}
106... Kh4 {[%clk 0:00:08.2]} 107. Ng4 {[%clk 0:00:11.2]} 107... Kh3 {[%clk
0:00:09.1]} 108. Nh6 {[%clk 0:00:11.5]} 108... Be5 {[%clk 0:00:09.4]} 109. Ng4
{[%clk 0:00:11.7]} 109... Bg7 {[%clk 0:00:10.3]} 110. Ne3 {[%clk 0:00:11.1]}
110... Bf8 {[%clk 0:00:09.8]} 111. Ng4 {[%clk 0:00:10.2]} 111... Bc5 {[%clk
0:00:10.7]} 112. Nh6 {[%clk 0:00:10.2]} 112... Bf8 {[%clk 0:00:10.7]} 113. Ng4
{[%clk 0:00:10.4]} 113... Bg7 {[%clk 0:00:11.4]} 114. Ne3 {[%clk 0:00:10.7]}
114... Bd4 {[%clk 0:00:10.8]} 1/2-1/2

[Event "*** Titled Tuesday Blitz"]
[Site "Chess.com"]
[Date "2020.04.28"]
[Round "5"]
[White "NiranjanNavalgund"]
[Black "12teen"]
[Result "1/2-1/2"]
[WhiteElo "2494"]
[BlackElo "2789"]
[TimeControl "180+1"]
[EndTime "10:59:29 PDT"]
[Termination "Game drawn - insufficient material"]

1. Nf3 {[%clk 0:02:56.7]} 1... a6 {[%clk 0:02:59.9]} 2. e4 {[%clk 0:02:55.3]}
2... b5 {[%clk 0:03:00.5]} 3. a4 {[%clk 0:02:54.5]} 3... Bb7 {[%clk 0:02:58.9]}
4. axb5 {[%clk 0:02:51.7]} 4... axb5 {[%clk 0:02:59.8]} 5. Rxa8 {[%clk
0:02:51.1]} 5... Bxa8 {[%clk 0:03:00.7]} 6. Bxb5 {[%clk 0:02:41.4]} 6... Bxe4
{[%clk 0:03:00.3]} 7. O-O {[%clk 0:02:41.6]} 7... e6 {[%clk 0:03:00.8]} 8. Re1
{[%clk 0:02:41.4]} 8... Bb7 {[%clk 0:03:00]} 9. d4 {[%clk 0:02:37.6]} 9... Nf6
{[%clk 0:02:59.9]} 10. Bg5 {[%clk 0:02:37]} 10... Be7 {[%clk 0:03:00.2]} 11. c4
{[%clk 0:02:36.6]} 11... O-O {[%clk 0:03:00.2]} 12. Nc3 {[%clk 0:02:36.6]} 12...
h6 {[%clk 0:02:55.3]} 13. Bf4 {[%clk 0:02:34.1]} 13... d6 {[%clk 0:02:55]} 14.
h3 {[%clk 0:02:30.5]} 14... Nbd7 {[%clk 0:02:54.4]} 15. Qe2 {[%clk 0:02:26.2]}
15... Qa8 {[%clk 0:02:51.2]} 16. d5 {[%clk 0:02:21.3]} 16... e5 {[%clk
0:02:45.9]} 17. Bc1 {[%clk 0:02:12.2]} 17... c6 {[%clk 0:02:44.6]} 18. dxc6
{[%clk 0:02:08]} 18... Bxc6 {[%clk 0:02:45.5]} 19. Bxc6 {[%clk 0:02:06.3]} 19...
Qxc6 {[%clk 0:02:46.4]} 20. Nh4 {[%clk 0:02:06.4]} 20... Rb8 {[%clk 0:02:39.6]}
21. Nf5 {[%clk 0:02:04.7]} 21... Bf8 {[%clk 0:02:39.9]} 22. Rd1 {[%clk
0:01:58.3]} 22... Rb4 {[%clk 0:02:27]} 23. Ne3 {[%clk 0:01:54.2]} 23... Nb6
{[%clk 0:02:18.9]} 24. Ncd5 {[%clk 0:01:45.3]} 24... Nbxd5 {[%clk 0:02:02.1]}
25. cxd5 {[%clk 0:01:44.8]} 25... Qa4 {[%clk 0:01:57.4]} 26. Nc2 {[%clk
0:01:28.7]} 26... Re4 {[%clk 0:01:54.5]} 27. Be3 {[%clk 0:01:23.7]} 27... Qb3
{[%clk 0:01:47.2]} 28. Na1 {[%clk 0:01:21.3]} 28... Qa2 {[%clk 0:01:42.7]} 29.
Qd2 {[%clk 0:01:16.6]} 29... Ra4 {[%clk 0:01:29.8]} 30. Qc2 {[%clk 0:01:02.3]}
30... Nxd5 {[%clk 0:01:12.1]} 31. Rxd5 {[%clk 0:01:01.7]} 31... Qxa1+ {[%clk
0:01:12.5]} 32. Kh2 {[%clk 0:00:56.9]} 32... Rb4 {[%clk 0:01:06.6]} 33. Bc1
{[%clk 0:00:49.9]} 33... Qa2 {[%clk 0:01:01.5]} 34. Rd3 {[%clk 0:00:49.5]} 34...
Rc4 {[%clk 0:00:57]} 35. Rc3 {[%clk 0:00:49.8]} 35... d5 {[%clk 0:00:55.7]} 36.
Rxc4 {[%clk 0:00:47.1]} 36... dxc4 {[%clk 0:00:56.6]} 37. Qc3 {[%clk 0:00:44.9]}
37... Bd6 {[%clk 0:00:51.1]} 38. Be3 {[%clk 0:00:41.2]} 38... Qb3 {[%clk
0:00:44.7]} 39. Qd2 {[%clk 0:00:41.3]} 39... e4+ {[%clk 0:00:41.1]} 40. Qxd6
{[%clk 0:00:40.3]} 40... Qxb2 {[%clk 0:00:36]} 41. Qd4 {[%clk 0:00:38.2]} 41...
c3 {[%clk 0:00:32.2]} 42. Bf4 {[%clk 0:00:31.4]} 42... f6 {[%clk 0:00:20.7]} 43.
Qd5+ {[%clk 0:00:26.6]} 43... Kh8 {[%clk 0:00:19.9]} 44. Qxe4 {[%clk 0:00:23.1]}
44... Qxf2 {[%clk 0:00:19]} 45. Qe8+ {[%clk 0:00:20.3]} 45... Kh7 {[%clk
0:00:19]} 46. Qe4+ {[%clk 0:00:21.2]} 46... Kh8 {[%clk 0:00:18.9]} 47. Be3
{[%clk 0:00:21.4]} 47... Qe2 {[%clk 0:00:17.1]} 48. Qd4 {[%clk 0:00:20.7]} 48...
c2 {[%clk 0:00:16.6]} 49. Qd2 {[%clk 0:00:21.1]} 49... Qc4 {[%clk 0:00:15.4]}
50. Qd8+ {[%clk 0:00:20]} 50... Kh7 {[%clk 0:00:15.7]} 51. Qd2 {[%clk
0:00:20.9]} 51... h5 {[%clk 0:00:15.6]} 52. Kh1 {[%clk 0:00:19.2]} 52... Qe4
{[%clk 0:00:15.3]} 53. Kh2 {[%clk 0:00:19.4]} 53... h4 {[%clk 0:00:15.5]} 54.
Qe1 {[%clk 0:00:18.3]} 54... g5 {[%clk 0:00:14.7]} 55. Qd2 {[%clk 0:00:18.4]}
55... Kg6 {[%clk 0:00:15]} 56. Qc1 {[%clk 0:00:18.2]} 56... Qe5+ {[%clk
0:00:15]} 57. Kh1 {[%clk 0:00:17.1]} 57... Qe4 {[%clk 0:00:15.5]} 58. Qd2 {[%clk
0:00:17.3]} 58... Kh5 {[%clk 0:00:15.2]} 59. Qe2+ {[%clk 0:00:17.3]} 59... Kg6
{[%clk 0:00:15.6]} 60. Qd2 {[%clk 0:00:17.6]} 60... Qc4 {[%clk 0:00:12.1]} 61.
Qc1 {[%clk 0:00:17.5]} 61... Qd3 {[%clk 0:00:10.1]} 62. Kh2 {[%clk 0:00:17.9]}
62... Qd1 {[%clk 0:00:08.2]} 63. Qd2 {[%clk 0:00:18.2]} 63... Qb1 {[%clk
0:00:06]} 64. Qc1 {[%clk 0:00:18.1]} 64... Kf5 {[%clk 0:00:05.1]} 65. Qd2 {[%clk
0:00:18.2]} 65... Ke4 {[%clk 0:00:03.7]} 66. Qd4+ {[%clk 0:00:17.3]} 66... Kf5
{[%clk 0:00:04.1]} 67. Qd3+ {[%clk 0:00:17.7]} 67... Ke6 {[%clk 0:00:04.6]} 68.
Qe4+ {[%clk 0:00:18.1]} 68... Kf7 {[%clk 0:00:05]} 69. Qh7+ {[%clk 0:00:18.2]}
69... Ke6 {[%clk 0:00:05.1]} 70. Qe4+ {[%clk 0:00:18.7]} 70... Kd7 {[%clk
0:00:04.6]} 71. Qd5+ {[%clk 0:00:18.6]} 71... Ke7 {[%clk 0:00:05]} 72. Qc5+
{[%clk 0:00:18.8]} 72... Kf7 {[%clk 0:00:05.2]} 73. Qc3 {[%clk 0:00:18.8]} 73...
Qb8+ {[%clk 0:00:03.9]} 74. Kg1 {[%clk 0:00:18.2]} 74... Qb1+ {[%clk 0:00:04.8]}
75. Kh2 {[%clk 0:00:18.5]} 75... Qb8+ {[%clk 0:00:04.8]} 76. Kg1 {[%clk
0:00:19]} 76... Qg3 {[%clk 0:00:05.7]} 77. Qc4+ {[%clk 0:00:18.5]} 77... Kg7
{[%clk 0:00:05.3]} 78. Bf2 {[%clk 0:00:18.9]} 78... Qf4 {[%clk 0:00:01.5]} 79.
Qxc2 {[%clk 0:00:18.7]} 79... Kh6 {[%clk 0:00:01.6]} 80. Qe2 {[%clk 0:00:18.6]}
80... Kg6 {[%clk 0:00:01.9]} 81. Qd3+ {[%clk 0:00:18.6]} 81... f5 {[%clk
0:00:02.1]} 82. Qe3 {[%clk 0:00:17.6]} 82... Qc4 {[%clk 0:00:01.9]} 83. Qe8+
{[%clk 0:00:16.9]} 83... Kf6 {[%clk 0:00:02]} 84. Qe3 {[%clk 0:00:17.8]} 84...
Kg6 {[%clk 0:00:02.4]} 85. Qd4 {[%clk 0:00:15.6]} 85... Qc1+ {[%clk 0:00:02.5]}
86. Kh2 {[%clk 0:00:15.3]} 86... Qc7+ {[%clk 0:00:03.1]} 87. Kg1 {[%clk
0:00:14.5]} 87... Qc1+ {[%clk 0:00:02.7]} 88. Kh2 {[%clk 0:00:14.8]} 88... Qc7+
{[%clk 0:00:03.3]} 89. g3 {[%clk 0:00:15.2]} 89... hxg3+ {[%clk 0:00:03.1]} 90.
Bxg3 {[%clk 0:00:15.1]} 90... f4 {[%clk 0:00:04]} 91. Qe4+ {[%clk 0:00:14.4]}
91... Kh5 {[%clk 0:00:03.5]} 92. Bf2 {[%clk 0:00:14.6]} 92... Kh6 {[%clk
0:00:02.1]} 93. Kg2 {[%clk 0:00:14.1]} 93... Kh5 {[%clk 0:00:02.1]} 94. Qe8+
{[%clk 0:00:12.4]} 94... Kh6 {[%clk 0:00:02.2]} 95. Qh8+ {[%clk 0:00:12.4]}
95... Kg6 {[%clk 0:00:02.8]} 96. Qe8+ {[%clk 0:00:12.3]} 96... Kh6 {[%clk
0:00:03.1]} 97. Qe4 {[%clk 0:00:12.3]} 97... Kh5 {[%clk 0:00:02.8]} 98. Qf3+
{[%clk 0:00:12.6]} 98... Kg6 {[%clk 0:00:03.2]} 99. Qg4 {[%clk 0:00:12.8]} 99...
Qc6+ {[%clk 0:00:02.9]} 100. Qf3 {[%clk 0:00:13]} 100... Qe6 {[%clk 0:00:02.6]}
101. Qg4 {[%clk 0:00:12.6]} 101... Qe4+ {[%clk 0:00:02.7]} 102. Qf3 {[%clk
0:00:13]} 102... Qc2 {[%clk 0:00:02.8]} 103. Qd5 {[%clk 0:00:11.4]} 103... Kh5
{[%clk 0:00:02.3]} 104. Qf7+ {[%clk 0:00:11]} 104... Kh6 {[%clk 0:00:02.5]} 105.
Qf6+ {[%clk 0:00:11.3]} 105... Kh5 {[%clk 0:00:02.6]} 106. Qh8+ {[%clk
0:00:11.1]} 106... Kg6 {[%clk 0:00:03]} 107. Qg8+ {[%clk 0:00:11.5]} 107... Kh6
{[%clk 0:00:03.1]} 108. Qf8+ {[%clk 0:00:11.2]} 108... Kh5 {[%clk 0:00:03.6]}
109. Qe8+ {[%clk 0:00:11.5]} 109... Kh6 {[%clk 0:00:03.8]} 110. Qe6+ {[%clk
0:00:11.3]} 110... Kh5 {[%clk 0:00:04.1]} 111. Qg4+ {[%clk 0:00:12.2]} 111...
Kh6 {[%clk 0:00:03.8]} 112. h4 {[%clk 0:00:12.7]} 112... Qe4+ {[%clk 0:00:04.2]}
113. Kh2 {[%clk 0:00:12.4]} 113... gxh4 {[%clk 0:00:04.2]} 114. Qxh4+ {[%clk
0:00:12.9]} 114... Kg6 {[%clk 0:00:04.5]} 115. Qg4+ {[%clk 0:00:13.5]} 115...
Kf6 {[%clk 0:00:05]} 116. Bh4+ {[%clk 0:00:13.2]} 116... Ke5 {[%clk 0:00:04]}
117. Qg7+ {[%clk 0:00:12.3]} 117... Kd5 {[%clk 0:00:04]} 118. Qb7+ {[%clk
0:00:12.2]} 118... Kd4 {[%clk 0:00:04.1]} 119. Bf2+ {[%clk 0:00:12.3]} 119...
Ke5 {[%clk 0:00:02.4]} 120. Qe7+ {[%clk 0:00:12.1]} 120... Kf5 {[%clk
0:00:02.6]} 121. Qh7+ {[%clk 0:00:12.2]} 121... Ke5 {[%clk 0:00:03]} 122. Qg7+
{[%clk 0:00:12.5]} 122... Kf5 {[%clk 0:00:03.2]} 123. Qh7+ {[%clk 0:00:09.8]}
123... Ke5 {[%clk 0:00:03.6]} 124. Qc7+ {[%clk 0:00:08.5]} 124... Kf5 {[%clk
0:00:03.7]} 125. Qc3 {[%clk 0:00:08.4]} 125... Qe5 {[%clk 0:00:03.1]} 126. Qh3+
{[%clk 0:00:08.1]} 126... Ke4 {[%clk 0:00:02.8]} 127. Kg1 {[%clk 0:00:03.5]}
127... Qg5+ {[%clk 0:00:02.6]} 128. Kf1 {[%clk 0:00:03.3]} 128... Qb5+ {[%clk
0:00:03.1]} 129. Kg1 {[%clk 0:00:03.1]} 129... Qg5+ {[%clk 0:00:03.6]} 130. Qg2+
{[%clk 0:00:03.6]} 130... Qxg2+ {[%clk 0:00:03.5]} 131. Kxg2 {[%clk 0:00:04.5]}
131... f3+ {[%clk 0:00:04.3]} 132. Kg3 {[%clk 0:00:05.2]} 132... Kd3 {[%clk
0:00:04.9]} 133. Kxf3 {[%clk 0:00:06.1]} 1/2-1/2

[Event "*** Titled Tuesday Blitz"]
[Site "Chess.com"]
[Date "2020.04.28"]
[Round "6"]
[White "MaxVavulin"]
[Black "keepitcool9499"]
[Result "1-0"]
[WhiteElo "2607"]
[BlackElo "2460"]
[TimeControl "180+1"]
[EndTime "11:01:53 PDT"]
[Termination "MaxVavulin won by resignation"]

1. e4 {[%clk 0:03:00.9]} 1... e6 {[%clk 0:02:59.5]} 2. d4 {[%clk 0:03:00.2]}
2... d5 {[%clk 0:02:59.8]} 3. Bd3 {[%clk 0:03:00.8]} 3... c5 {[%clk 0:02:56.7]}
4. exd5 {[%clk 0:03:00.2]} 4... Qxd5 {[%clk 0:02:56.3]} 5. Nc3 {[%clk 0:02:59]}
5... Qxg2 {[%clk 0:02:47.1]} 6. Be4 {[%clk 0:02:58.2]} 6... Qxh1 {[%clk
0:02:26.5]} 7. Bxh1 {[%clk 0:02:57.7]} 7... Nf6 {[%clk 0:02:24.5]} 8. Nb5 {[%clk
0:02:56.4]} 8... Na6 {[%clk 0:02:24.1]} 9. Bf4 {[%clk 0:02:53.2]} 9... Be7
{[%clk 0:02:23]} 10. Bd6 {[%clk 0:02:47.7]} 10... Bxd6 {[%clk 0:02:21.9]} 11.
Nxd6+ {[%clk 0:02:47.1]} 11... Ke7 {[%clk 0:02:22.1]} 12. dxc5 {[%clk
0:02:46.1]} 12... Nxc5 {[%clk 0:02:20.2]} 13. Qd4 {[%clk 0:02:45.2]} 13... Ncd7
{[%clk 0:02:17.7]} 14. O-O-O {[%clk 0:02:42.9]} 14... Rb8 {[%clk 0:02:16.1]} 15.
Qb4 {[%clk 0:02:33]} 15... Kd8 {[%clk 0:02:07.1]} 16. Nxf7+ {[%clk 0:02:32]} 1-0

[Event "*** Titled Tuesday Blitz"]
[Site "Chess.com"]
[Date "2020.04.28"]
[Round "6"]
[White "northridgehawk"]
[Black "Zhani-Z"]
[Result "0-1"]
[WhiteElo "2308"]
[BlackElo "2485"]
[TimeControl "180+1"]
[EndTime "11:01:56 PDT"]
[Termination "Zhani-Z won by resignation"]

1. e4 {[%clk 0:03:00.8]} 1... e5 {[%clk 0:02:59.3]} 2. Bc4 {[%clk 0:02:40.8]}
2... Nc6 {[%clk 0:02:55.4]} 3. Nc3 {[%clk 0:02:39.9]} 3... Nf6 {[%clk
0:02:54.5]} 4. d3 {[%clk 0:02:38.9]} 4... Bb4 {[%clk 0:02:53.8]} 5. f4 {[%clk
0:02:38.2]} 5... d5 {[%clk 0:02:53.1]} 6. exd5 {[%clk 0:02:38.3]} 6... Nxd5
{[%clk 0:02:54]} 7. Ne2 {[%clk 0:02:36]} 7... Bg4 {[%clk 0:02:42]} 8. O-O {[%clk
0:02:32.9]} 8... Bxc3 {[%clk 0:02:33.7]} 9. Bxd5 {[%clk 0:02:21.5]} 9... Bd4+
{[%clk 0:02:32.4]} 10. Nxd4 {[%clk 0:02:21.1]} 10... Bxd1 {[%clk 0:02:32]} 11.
Bxc6+ {[%clk 0:02:16]} 11... bxc6 {[%clk 0:02:31.2]} 12. Nxc6 {[%clk 0:02:16]}
12... Qd5 {[%clk 0:02:20.8]} 13. Nb4 {[%clk 0:02:15.2]} 13... Qd4+ {[%clk
0:02:20]} 0-1

[Event "*** Titled Tuesday Blitz"]
[Site "Chess.com"]
[Date "2020.04.28"]
[Round "6"]
[White "Kostya26"]
[Black "tan275"]
[Result "1-0"]
[WhiteElo "2410"]
[BlackElo "2183"]
[TimeControl "180+1"]
[EndTime "11:02:06 PDT"]
[Termination "Kostya26 won by resignation"]

1. e4 {[%clk 0:03:00.9]} 1... c6 {[%clk 0:02:59.4]} 2. d4 {[%clk 0:02:58.9]}
2... d5 {[%clk 0:02:59.8]} 3. exd5 {[%clk 0:02:59.1]} 3... cxd5 {[%clk
0:02:59.8]} 4. Bd3 {[%clk 0:02:59.7]} 4... Nc6 {[%clk 0:02:56.3]} 5. c3 {[%clk
0:02:59.9]} 5... Qc7 {[%clk 0:02:55.5]} 6. Ne2 {[%clk 0:02:55.9]} 6... Nf6
{[%clk 0:02:48.3]} 7. Bf4 {[%clk 0:02:54.4]} 7... Qb6 {[%clk 0:02:28.1]} 8. Qb3
{[%clk 0:02:53.2]} 8... Qxb3 {[%clk 0:02:16.8]} 9. axb3 {[%clk 0:02:54.1]} 9...
Nh5 {[%clk 0:02:15.7]} 10. Be3 {[%clk 0:02:44.8]} 10... e5 {[%clk 0:02:06.1]}
11. dxe5 {[%clk 0:02:43.1]} 11... Nxe5 {[%clk 0:02:06.1]} 12. Bb5+ {[%clk
0:02:41.1]} 12... Bd7 {[%clk 0:02:06.1]} 13. Bxd7+ {[%clk 0:02:40.4]} 13... Kxd7
{[%clk 0:02:05.7]} 14. Rxa7 {[%clk 0:02:40.6]} 14... Rxa7 {[%clk 0:02:02.9]} 15.
Bxa7 {[%clk 0:02:41.5]} 15... Nd3+ {[%clk 0:01:59.8]} 16. Kd2 {[%clk 0:02:41.1]}
16... Nxf2 {[%clk 0:01:56.9]} 17. Bxf2 {[%clk 0:02:40.2]} 1-0

[Event "*** Titled Tuesday Blitz"]
[Site "Chess.com"]
[Date "2020.04.28"]
[Round "6"]
[White "petincash"]
[Black "jucAxx"]
[Result "1-0"]
[WhiteElo "2385"]
[BlackElo "2114"]
[TimeControl "180+1"]
[EndTime "11:02:51 PDT"]
[Termination "petincash won by resignation"]

1. e4 {[%clk 0:03:00.9]} 1... e6 {[%clk 0:03:00]} 2. Nc3 {[%clk 0:03:00.9]} 2...
d5 {[%clk 0:02:59.9]} 3. d4 {[%clk 0:03:01.1]} 3... Bb4 {[%clk 0:02:59.5]} 4.
exd5 {[%clk 0:03:00.7]} 4... exd5 {[%clk 0:02:58.5]} 5. Bd3 {[%clk 0:03:01.2]}
5... Nf6 {[%clk 0:02:58.7]} 6. a3 {[%clk 0:02:56.7]} 6... Bxc3+ {[%clk
0:02:58.4]} 7. bxc3 {[%clk 0:02:57.1]} 7... O-O {[%clk 0:02:59]} 8. h3 {[%clk
0:02:54.7]} 8... Re8+ {[%clk 0:02:50.1]} 9. Ne2 {[%clk 0:02:55]} 9... c5 {[%clk
0:02:49.4]} 10. dxc5 {[%clk 0:02:49.4]} 10... Qa5 {[%clk 0:02:45]} 11. O-O
{[%clk 0:02:47.8]} 11... Qxc5 {[%clk 0:02:45.1]} 12. Be3 {[%clk 0:02:40.4]}
12... Qc7 {[%clk 0:02:43.7]} 13. Bf4 {[%clk 0:02:25.4]} 13... Qa5 {[%clk
0:02:33.4]} 14. Nd4 {[%clk 0:02:01.3]} 14... Qxc3 {[%clk 0:02:16.2]} 15. Nb5
{[%clk 0:01:58]} 15... Qa5 {[%clk 0:02:03.1]} 16. Nc7 {[%clk 0:01:50.6]} 1-0